[Event "FIDE WSCC 50 2022"]
[Site "Assisi"]
[Date "2022.11.20"]
[Round "6.11"]
[White "Paglietti, Nicola"]
[Black "Arakhamia-Grant, Ketevan"]
[Result "*"]
[ECO "A41"]
[WhiteElo "2194"]
[BlackElo "2327"]
[Annotator "TA"]
[PlyCount "29"]
[EventDate "2022.11.14"]
[EventType "swiss"]
[EventCountry "ITA"]
[SourceTitle "playchess.com"]
[Source "ChessBase"]
[SourceQuality "1"]
[TimeControl "40/5400+30:1800+30"]

{[%evp 15,29,29,45,45,65,0,3,0,0,-11,-10,-17,-10,-42,7,7]} 1. Nf3 {[%emt 0:00:08]} g6 {[%emt 0:00:33]} 2. c4 {[%emt 0:00:59]} Bg7 {[%emt 0:00:12]} 3. Nc3 {[%emt 0:00:30]} d6 {[%emt 0:00:41]} 4. d4 {[%emt 0:02:41]} Nd7 {[%emt 0:00:31]} 5. g3 {[%emt 1:28:42]} e5 {[%emt 0:00:44]} 6. Bg2 {[%emt 0:01:34]} Ne7 {[%emt 0:00:24]} 7. O-O {[%emt 1:26:23]} O-O {[%emt 0:00:08]} 8. e3 {[%emt 0:01:53]} h6 {[%emt 0:04:57]} 9. b3 {[%emt 0:03:08] A41: 1 d4 d6: Tartakower System and Modern Defence.} f5 {[%emt 0:00:47]} 10. Bb2 {[%emt 0:00:54] White is more active.} (10. dxe5 $14 Nxe5 11. Nxe5) 10... e4 $11 {[%emt 0:06:16]} 11. Nd2 {[%emt 0:07:19]} c6 {[%emt 0:04:06]} 12. Qc2 {[%emt 0:02:57]} Nf6 {[%emt 0:02:45] [#]} 13. Rac1 $146 {[%emt 0:03:49]} ({Predecessor:} 13. Rfd1 d5 14. Ba3 Bd7 15. Rac1 Rc8 16. Qb2 g5 17. Bd6 Rf7 18. Be5 Nh5 19. Bf1 {0-1 (30) Gereben,E-Mestel,A Bern 1976}) 13... Be6 {[%emt 0:03:09]} 14. b4 {[%emt 0:08:53][%cal Bb3b4,Bb4b5][%mdl 32]} g5 {[%emt 0:16:56]} (14... d5 $15) 15. b5 {[%emt 0:59:36] Weighted Error Value: White=0.25 (precise) /Black=0.13 (very precise)} *

[Event "FIDE WSCC 50 2022"]
[Site "Assisi"]
[Date "2022.11.20"]
[Round "6.11"]
[White "Paglietti, Nicola"]
[Black "Boulard, Eric"]
[Result "0-1"]
[ECO "A41"]
[WhiteElo "2194"]
[BlackElo "2185"]
[Annotator "TA"]
[PlyCount "68"]
[EventDate "2022.11.14"]
[EventType "swiss"]
[EventCountry "ITA"]
[SourceTitle "playchess.com"]
[Source "ChessBase"]
[SourceQuality "1"]
[TimeControl "40/5400+30:1800+30"]

{[%evp 15,68,35,47,53,83,4,9,5,10,-4,0,-10,-14,-36,13,18,6,0,6,9,29,-24,-6,-21,0,-96,-92,-151,-127,-133,-101,-127,-145,-275,-197,-274,-126,-166,-159,-162,-94,-120,-140,-135,-121,-193,-189,-464,-458,-668,-662,-29985,-29986,-29978,-12829]} 1. Nf3 {[%emt 0:00:08]} g6 {[%emt 0:00:33]} 2. c4 {[%emt 0:00:59]} Bg7 {[%emt 0:00:12]} 3. Nc3 {[%emt 0:00:30]} d6 {[%emt 0:00:41]} 4. d4 {[%emt 0:02:41]} Nd7 {[%emt 0:00:31]} 5. g3 {[%emt 0:01:45]} e5 {[%emt 0:00:44]} 6. Bg2 {[%emt 0:01:34]} Ne7 {[%emt 0:00:24]} 7. O-O {[%emt 0:01:54]} O-O {[%emt 0:00:08]} 8. e3 {[%emt 0:01:53]} h6 {[%emt 0:04:57]} 9. b3 {[%emt 0:03:08] A41: 1 d4 d6: Tartakower System and Modern Defence.} f5 {[%emt 0:00:47]} 10. Bb2 {[%emt 0:00:54]} (10. dxe5 $1 $16 Nc6 11. Bb2 (11. Qd5+ Kh7 $14) 11... Ncxe5 12. Nxe5 Bxe5 13. f4) 10... e4 $11 {[%emt 0:06:16]} 11. Nd2 {[%emt 0:07:19] The position is equal.} c6 {[%emt 0:04:06]} 12. Qc2 {[%emt 0:02:57]} Nf6 {[%emt 0:02:45] [#]} 13. Rac1 $146 {[%emt 0:03:49]} ({Predecessor:} 13. Rfd1 d5 14. Ba3 Bd7 15. Rac1 Rc8 16. Qb2 g5 17. Bd6 Rf7 18. Be5 Nh5 19. Bf1 {0-1 (30) Gereben,E-Mestel,A Bern 1976}) 13... Be6 {[%emt 0:03:09]} 14. b4 {[%emt 0:08:53]} g5 {[%emt 0:16:56]} (14... d5 $15) 15. b5 {[%emt 0:00:56]} h5 {[%emt 0:10:35]} 16. bxc6 {[%emt 0:02:09]} bxc6 {[%emt 0:00:06][%cal Bb7c6,Bc6c5][%mdl 32]} 17. Rfd1 {[%emt 0:03:07]} h4 {[%emt 0:05:11]} 18. Nb3 {[%emt 0:01:45]} (18. gxh4 $142 gxh4 19. Bh3) 18... hxg3 {[%emt 0:07:00]} (18... Bxc4 19. Nxe4 $1 fxe4 20. Qxc4+ d5 21. Qa6 $16) 19. hxg3 {[%emt 0:00:32][%cal Od4d5]} Bf7 {[%emt 0:00:36]} ({But not} 19... Bxc4 20. Nxe4 $1 Nxe4 21. Qxc4+ d5 22. Qe2 $16) 20. d5 {[%emt 0:05:57] [#]} (20. Ba3 $11 {remains equal.}) 20... c5 $1 $17 {[%emt 0:01:00]} 21. f3 {[%emt 0:02:14]} (21. Na4 $142) 21... exf3 {[%emt 0:05:41]} 22. Bxf3 {[%emt 0:00:08]} Nd7 {[%emt 0:08:38]} 23. Bg2 {[%emt 0:07:12]} Ne5 {[%emt 0:02:09]} 24. Nd2 {[%emt 0:04:06]} (24. Ne2 $17) 24... Bg6 {[%emt 0:10:04] And now ...f4 would win.} 25. Rf1 {[%emt 0:03:30] Prevents f4.} (25. Nf3 $142) 25... Qd7 {[%emt 0:03:11]} ({Don't blunder} 25... f4 $2 26. Nce4 fxe3 27. Rxf8+ Qxf8 28. Rf1) (25... Rb8 $19 {[%cal Of5f4]} 26. Ba1 f4) 26. Ne2 {[%emt 0:04:36] Inhibits f4.} f4 {[%emt 0:01:29]} 27. e4 {[%emt 0:01:14][%cal Rg3f4]} Qg4 {[%emt 0:03:21]} (27... fxg3 $19 {Threatens to win with ...Qg4.} 28. Rxf8+ Rxf8) 28. gxf4 {[%emt 0:06:51]} gxf4 {[%emt 0:00:33] aiming for ...f3.} 29. Bxe5 {[%emt 0:00:18]} Bxe5 {[%emt 0:00:31] Chess con chili.} 30. Qd3 {[%emt 0:03:39] Inhibits f3.} (30. Nf3 $17 {was necessary.}) 30... Bh5 $40 {[%emt 0:00:40][%mdl 128] Black attacks with force. A strong pair of Bishops.} 31. Rce1 {[%emt 0:04:14]} (31. Nf3 {keeps fighting.}) 31... Ng6 {[%emt 0:00:36]} 32. Kh1 {[%emt 0:05:56]} (32. Qh3 $142 Qxh3 33. Bxh3) 32... Qh4+ {[%emt 0:01:03]} ({Inferior is} 32... f3 33. Nxf3 Bg7 34. Nfg1 $17) 33. Kg1 {[%emt 0:01:38]} f3 {[%emt 0:00:41]} 34. Nxf3 {[%emt 0:01:10]} Bxf3 {[%emt 0:02:16][%mdl 64] Remove Defender.   Weighted Error Value: White=0.85/Black=0.19 (very precise)} 0-1

[Event "FIDE WSCC 50 2022"]
[Site "Assisi"]
[Date "2022.11.20"]
[Round "6.12"]
[White "Jhunjhnuwala, Krishan"]
[Black "Grant, Jonathan I M"]
[Result "1/2-1/2"]
[ECO "B18"]
[WhiteElo "2326"]
[BlackElo "2154"]
[Annotator "TA"]
[PlyCount "83"]
[EventDate "2022.11.14"]
[EventType "swiss"]
[EventCountry "ITA"]
[SourceTitle "playchess.com"]
[Source "ChessBase"]
[SourceQuality "1"]
[TimeControl "40/5400+30:1800+30"]

{[%evp 21,83,-18,-12,-15,-6,-9,-8,-45,-9,-18,-16,-23,4,-20,6,0,0,0,0,-26,-27,-21,-1,-2,-5,-18,-27,-38,-13,-34,-7,-20,-11,-27,-26,-26,-18,-20,-20,-64,-16,-23,0,0,0,0,0,0,0,0,0,0,4,0,0,0,4,0,0,0,0,0,0,0]} 1. e4 {[%emt 0:00:08]} c6 {[%emt 0:00:19]} 2. d4 {[%emt 0:00:08]} d5 {[%emt 0:00:05]} 3. Nc3 {[%emt 0:00:03]} dxe4 {[%emt 0:00:06]} 4. Nxe4 {[%emt 0:00:04]} Bf5 {[%emt 0:00:07]} 5. Ng3 {[%emt 0:00:09]} Bg6 {[%emt 0:00:14]} 6. h4 {[%emt 0:00:31]} h6 {[%emt 0:00:26]} 7. Nh3 {[%emt 0:00:13]} Nf6 {[%emt 0:06:30]} 8. Nf4 {[%emt 0:00:32]} Bh7 {[%emt 0:00:13]} 9. Bc4 {[%emt 0:00:10]} e6 {[%emt 0:01:23]} 10. O-O {[%emt 0:01:00]} Bd6 {[%emt 0:02:26]} 11. Re1 {[%emt 0:01:04]} O-O $1 {[%emt 0:04:17]} 12. c3 {[%emt 0:03:03] B18: Classical Caro-Kann: 4...Bf5 sidelines.} Re8 {[%emt 0:07:58]} 13. Qf3 {[%emt 0:05:32]} Nbd7 {[%emt 0:03:09]} 14. Nd3 {[%emt 0:11:13]} Qc7 {[%emt 0:10:18]} (14... Nd5 {keeps more tension.} 15. Ne4 Bc7 16. g3 e5) 15. Bf4 {[%emt 0:07:41]} Bxf4 {[%emt 0:14:36]} 16. Nxf4 {[%emt 0:06:40] [#]} a5 $146 {[%emt 0:06:30][%cal Ba7a5,Ba5a4][%mdl 32]} ({Predecessor:} 16... c5 17. Bb3 Rad8 18. Bxe6 fxe6 19. Nxe6 Rxe6 20. Rxe6 Nf8 21. Rxf6 gxf6 22. Re1 Qf7 {½-½ (43) Klepikov,N (2245)-Zabolotnov,E (2047) St Petersburg 2018}) 17. Nfh5 {[%emt 0:04:55]} a4 {[%emt 0:04:06]} 18. Rad1 {[%emt 0:05:47]} Ra5 {[%emt 0:06:47]} 19. Nxf6+ {[%emt 0:04:24]} Nxf6 {[%emt 0:00:15]} 20. Bd3 {[%emt 0:02:00]} Bxd3 {[%emt 0:01:10]} 21. Rxd3 {[%emt 0:00:35]} Rb5 {[%emt 0:02:07]} 22. Rd2 {[%emt 0:02:54]} Rd8 {[%emt 0:04:57]} 23. Ne4 {[%emt 0:04:01] Prevents c5.} Nxe4 {[%emt 0:04:11]} 24. Rxe4 {[%emt 0:01:53]} Rf5 {[%emt 0:01:56]} 25. Qe2 {[%emt 0:01:58]} b5 {[%emt 0:02:33]} 26. g3 {[%emt 0:05:52]} Rfd5 {[%emt 0:03:16]} 27. c4 {[%emt 0:05:30]} bxc4 {[%emt 0:00:53]} 28. Qxc4 {[%emt 0:00:34]} Qa5 {[%emt 0:04:27]} 29. Rc2 {[%emt 0:02:21]} R8d6 {[%emt 0:03:37]} 30. Rce2 {[%emt 0:06:52]} Qa7 {[%emt 0:02:31]} (30... a3 $15 {is more appropriate.}) 31. a3 $1 $11 {[%emt 0:00:38]} Rxd4 {[%emt 0:00:46]} 32. Rxd4 {[%emt 0:00:16] The position is equal.} Rxd4 {[%emt 0:01:19]} 33. Qxc6 {[%emt 0:00:33][%mdl 4096] Endgame KQR-KQR} Rd1+ {[%emt 0:01:32]} 34. Kg2 {[%emt 0:00:44] [#] Qc8+ is the strong threat.} Rd4 {[%emt 0:01:00]} 35. Re4 {[%emt 0:03:27]} Rxe4 {[%emt 0:00:22]} 36. Qxe4 {[%emt 0:00:09] KQ-KQ} h5 {[%emt 0:00:56]} 37. Kf3 {[%emt 0:01:47]} g6 {[%emt 0:00:47]} 38. Ke2 {[%emt 0:01:32]} Qd7 {[%emt 0:00:42]} 39. Qe5 {[%emt 0:02:57]} Qc6 {[%emt 0:00:29]} 40. Kd2 {[%emt 0:03:09]} Qb6 {[%emt 0:00:24]} 41. Ke2 {[%emt 0:31:20]} Qa6+ {[%emt 0:02:28]} 42. Ke1 {[%emt 0:07:11] Weighted Error Value: White=0.09 (flawless) /Black=0.09 (flawless)} 1/2-1/2

[Event "FIDE WSCC 50 2022"]
[Site "Assisi"]
[Date "2022.11.20"]
[Round "6.13"]
[White "Morin, Yves"]
[Black "Cummings, David H."]
[Result "1/2-1/2"]
[ECO "B10"]
[WhiteElo "2170"]
[BlackElo "2318"]
[Annotator "TA"]
[PlyCount "28"]
[EventDate "2022.11.14"]
[EventType "swiss"]
[EventCountry "ITA"]
[SourceTitle "playchess.com"]
[Source "ChessBase"]
[SourceQuality "1"]
[TimeControl "40/5400+30:1800+30"]

{[%evp 9,28,-20,0,0,0,7,0,-4,23,22,16,25,27,19,21,14,16,16,11,10,25]} 1. e4 {[%emt 0:00:21]} c6 {[%emt 0:00:26]} 2. d3 {[%emt 0:00:18][%cal Bd2d3,Bd3d4][%mdl 32]} d5 {[%emt 0:00:12]} 3. Nd2 {[%emt 0:00:05]} e5 {[%emt 0:01:13]} 4. Ngf3 {[%emt 0:00:11]} Bd6 {[%emt 0:00:23]} 5. c3 {[%emt 0:00:06]} Nf6 {[%emt 0:01:04]} 6. d4 {[%emt 0:01:42] B10: Caro-Kann: 2 d3 and 2 c4.} dxe4 {[%emt 0:08:14] [#]} 7. dxe5 $146 {[%emt 0:00:36] [#] Black must now prevent Nc4.} ({Predecessor:} 7. Nxe5 O-O 8. Be2 Re8 9. Ndc4 Bc7 10. Bg5 Bf5 11. Ne3 Bg6 12. h4 Bxe5 13. dxe5 Qxd1+ 14. Rxd1 Nfd7 15. h5 h6 16. hxg6 hxg5 17. gxf7+ Kxf7 18. Bc4+ Kg6 19. Rd6+ {1-0 (19) Shanel,J (2167)-Trepka,J (2082) Sec u Chrudimi 2007}) 7... exf3 {[%emt 0:00:13]} 8. Nxf3 {[%emt 0:00:26]} Be7 {[%emt 0:05:01] aiming for ...Qxd1+.} ({But not} 8... Nd5 9. exd6 Qxd6 10. Be2 $16) (8... Bxe5 $5 {[%cal Rd8d1]} 9. Qxd8+ (9. Nxe5 Qe7 $11) 9... Kxd8 10. Nxe5 Re8 $11) 9. Qxd8+ {[%emt 0:01:59]} Bxd8 {[%emt 0:01:05]} 10. exf6 {[%emt 0:00:14]} Bxf6 {[%emt 0:00:07]} 11. Bc4 {[%emt 0:05:13]} O-O {[%emt 0:04:47] The position is equal.} 12. O-O {[%emt 0:00:53]} Bf5 {[%emt 0:04:57]} 13. Be3 {[%emt 0:02:13]} Nd7 {[%emt 0:03:36]} 14. Rfd1 {[%emt 0:24:48]} Ne5 {[%emt 0:14:16] A balanced but interesting game.  Weighted Error Value: White=0.02 (flawless) /Black=0.07 (flawless)} 1/2-1/2

[Event "FIDE WSCC 50 2022"]
[Site "Assisi"]
[Date "2022.11.20"]
[Round "6.14"]
[White "Berend, Fred"]
[Black "Klimaszewski, Dariusz"]
[Result "1/2-1/2"]
[ECO "E61"]
[WhiteElo "2294"]
[BlackElo "2152"]
[Annotator "TA"]
[PlyCount "202"]
[EventDate "2022.11.14"]
[EventType "swiss"]
[EventCountry "ITA"]
[SourceTitle "playchess.com"]
[Source "ChessBase"]
[SourceQuality "1"]
[TimeControl "40/5400+30:1800+30"]

{[%evp 15,202,12,29,9,9,-2,9,0,0,0,6,0,0,0,44,0,0,20,32,5,44,51,49,20,22,25,75,75,75,75,72,72,102,129,98,82,114,106,105,96,90,82,92,50,79,92,100,75,105,105,114,91,88,0,92,93,101,69,106,51,51,51,108,63,99,91,266,260,216,87,110,107,163,149,147,112,101,102,103,106,125,126,126,126,144,15,15,15,15,15,14,8,8,0,0,0,0,0,0,0,0,0,48,48,62,0,0,0,0,0,54,54,54,54,54,48,48,0,48,0,48,0,48,0,0,0,0,0,0,0,0,0,0,0,0,0,0,0,0,0,0,0,0,0,0,0,0,0,0,0,0,0,0,0,0,0,0,0,0,0,0,0,0,-92,0,0,0,0,0,0,0,0,0,0,0,0,0,0,0,0,0,0,0,0,0,0,0,0,0]} 1. d4 {[%emt 0:00:03]} Nf6 {[%emt 0:00:19]} 2. c4 {[%emt 0:00:06]} g6 {[%emt 0:00:09]} 3. Nc3 {[%emt 0:00:06]} Bg7 {[%emt 0:00:09]} 4. Nf3 {[%emt 0:00:13]} O-O {[%emt 0:00:17]} 5. Bg5 {[%emt 0:00:04]} d6 {[%emt 0:00:17]} 6. e3 {[%emt 0:00:05]} c6 {[%emt 0:01:19]} 7. Be2 {[%emt 0:01:00]} a6 {[%emt 0:01:29]} 8. Qc2 {[%emt 0:00:51]} Nbd7 {[%emt 0:03:02] [#]} 9. Bh4 $146 {[%emt 0:02:53] E61: King's Indian: Early deviations for White, including Smyslov System.} ({Predecessor:} 9. O-O b5 10. Nd2 Bb7 11. b4 a5 12. Rab1 bxc4 13. bxa5 Ba6 14. Nxc4 Bxc4 15. Bxc4 Qxa5 16. Bh4 Rfb8 17. Bb3 Qh5 {0-1 (31) Sulava,N (2565)-Martinovic,S (2511) Marija Bistrica 2011}) 9... b5 {[%emt 0:01:04]} 10. Nd2 {[%emt 0:00:46]} Bb7 {[%emt 0:01:17]} 11. Bf3 {[%emt 0:01:13]} Rb8 {[%emt 0:00:54]} 12. O-O {[%emt 0:02:30]} bxc4 {[%emt 0:02:20]} 13. Nxc4 {[%emt 0:06:38]} c5 {[%emt 0:00:40]} 14. d5 {[%emt 0:03:03]} a5 {[%emt 0:01:00]} 15. Rab1 {[%emt 0:08:30]} Ba6 {[%emt 0:00:32]} 16. b3 {[%emt 0:00:37]} Qc7 {[%emt 0:06:36]} 17. Rfe1 {[%emt 0:03:34]} Rb4 {[%emt 0:01:09]} (17... a4 $5) 18. a3 {[%emt 0:04:46]} Rb7 {[%emt 0:00:17]} 19. e4 {[%emt 0:04:02]} Rfb8 {[%emt 0:04:21][%cal Oa5a4]} 20. Be2 {[%emt 0:14:59]} Bxc4 {[%emt 0:03:56]} (20... Ne8 $11) 21. bxc4 $16 {[%emt 0:05:45]} Rxb1 {[%emt 0:00:41]} 22. Rxb1 {[%emt 0:00:04]} Rxb1+ {[%emt 0:00:36]} 23. Qxb1 {[%emt 0:00:01]} Ne8 {[%emt 0:01:24]} 24. Nb5 {[%emt 0:00:16]} Qd8 {[%emt 0:01:23]} 25. f4 {[%emt 0:03:23]} Kf8 {[%emt 0:02:10]} 26. Qd3 {[%emt 0:06:07] White has more active pieces.} Qb8 {[%emt 0:03:06]} 27. Be1 {[%emt 0:00:42][%cal Bh4e1,Be1a5,Ba5c3][%mdl 32]} a4 {[%emt 0:01:20]} 28. Ba5 {[%emt 0:09:11] Against Nc7} Qa8 {[%emt 0:07:19]} 29. Bc3 {[%emt 0:00:35]} Kg8 {[%emt 0:03:11]} 30. Be1 {[%emt 0:02:17]} Nb6 {[%emt 0:03:02]} 31. Kf2 {[%emt 0:05:36]} Qa6 {[%emt 0:03:26]} 32. g4 {[%emt 0:00:38]} Na8 {[%emt 0:00:31]} 33. Qd2 {[%emt 0:00:30]} Nf6 {[%emt 0:03:32]} 34. Qd3 {[%emt 0:04:05]} (34. Qc2 $16) 34... Nd7 {[%emt 0:00:24]} (34... Ne8 $1 $11) 35. g5 {[%emt 0:01:31]} Nab6 {[%emt 0:02:34]} 36. Qd2 {[%emt 0:00:15]} Kf8 {[%emt 0:02:36]} 37. Qa5 {[%emt 0:00:35]} (37. h4 $16) 37... Qxa5 $14 {[%emt 0:00:42]} 38. Bxa5 {[%emt 0:00:01]} Ke8 {[%emt 0:00:57]} (38... h6 $14) 39. Ke3 {[%emt 0:00:43]} Bb2 {[%emt 0:01:58]} 40. Kd2 {[%emt 0:00:38]} f6 $2 {[%emt 0:01:03]} (40... Kf8 $16 {keeps fighting.}) 41. Kc2 $18 {[%emt 0:31:17]} Ba1 {[%emt 0:30:14]} 42. Nc7+ {[%emt 0:08:35]} (42. Kb1 $18 {has better winning chances.} Bd4 43. Nxd4 cxd4 44. h4) 42... Kf7 $16 {[%emt 0:00:47]} 43. h4 {[%emt 0:00:00]} fxg5 {[%emt 0:00:00]} (43... Bd4 $16 {was called for.}) 44. hxg5 $18 {[%emt 0:00:00]} Bd4 {[%emt 0:00:00]} 45. Kd3 {[%emt 0:00:00]} Bb2 {[%emt 0:00:00]} 46. Bg4 {[%emt 0:00:00]} Bxa3 {[%emt 0:00:00]} 47. Be6+ $1 {[%emt 0:00:00]} Kf8 {[%emt 0:00:00] [#]} 48. Na8 $1 {[%emt 0:00:00][%mdl 512]} Nxa8 {[%emt 0:00:00]} 49. Bxd7 $16 {[%emt 0:00:00][%mdl 4096] Endgame KBB-KBN. This bishop pair is nice.} Bb4 {[%emt 0:00:00]} (49... Bc1 $2 50. Bxa4 Bxf4 51. Bc6 $18) 50. Bd8 {[%emt 0:00:00]} ({White must play} 50. Bxb4 $16 cxb4 51. Bxa4) 50... a3 $11 {[%emt 0:00:00]} 51. Kc2 {[%emt 0:00:00]} Bd2 $1 {[%emt 0:00:00]} 52. Bc6 {[%emt 0:00:00] With the idea e5.} ({Wrong is} 52. Kxd2 $2 a2 53. e5 dxe5 54. fxe5 a1=Q $19) 52... Bxf4 {[%emt 0:00:00]} 53. Bxa8 {[%emt 0:00:00]} Bxg5 {[%emt 0:00:00]} 54. Bc6 {[%emt 0:00:00]} Bf6 {[%emt 0:00:00]} 55. Kb3 {[%emt 0:00:00]} Bb2 {[%emt 0:00:00]} 56. Bd7 {[%emt 0:00:00][%cal Oe4e5]} Kf7 $1 {[%emt 0:00:00]} 57. e5 {[%emt 0:00:00]} Bxe5 {[%emt 0:00:00]} 58. Kxa3 {[%emt 0:00:00]} Bc3 {[%emt 0:00:00]} (58... h5 $11) 59. Kb3 $14 {[%emt 0:00:00]} Be1 {[%emt 0:00:00]} 60. Kc2 {[%emt 0:00:00]} ({Better is} 60. Bg4 $1 $14) 60... h5 $11 {[%emt 0:00:00]} 61. Kd1 {[%emt 0:00:00]} Bc3 {[%emt 0:00:00]} 62. Ke2 {[%emt 0:00:00]} Kf6 {[%emt 0:00:00]} (62... g5 $11) 63. Be8 $14 {[%emt 0:00:00]} Bb4 {[%emt 0:00:00]} 64. Kf3 {[%emt 0:00:00]} Bc3 {[%emt 0:00:00]} 65. Bd7 {[%emt 0:00:16]} Kf7 {[%emt 0:00:00]} 66. Be6+ {[%emt 0:00:57]} (66. Ke4 $1 $14 {deserves consideration.}) 66... Kf6 {[%emt 0:00:00]} (66... Ke8 $1 $11) 67. Ke3 {[%emt 0:00:10]} (67. Ke4 $14 {is more appropriate.}) 67... Bb4 {[%emt 0:00:00]} (67... g5 $1 $11) 68. Bh3 {[%emt 0:00:30]} (68. Ke4 $14) 68... Be1 {[%emt 0:00:00]} (68... g5 $11 {feels stronger.}) 69. Bf1 {[%emt 0:00:08]} (69. Bd7 $14) 69... g5 $11 {[%emt 0:00:00][%cal Bg6g5,Bg5g4][%mdl 32]} 70. Be2 {[%emt 0:00:33]} g4 {[%emt 0:00:00]} 71. Kf4 {[%emt 0:01:14]} Bd2+ {[%emt 0:00:00]} 72. Kg3 {[%emt 0:00:16]} Be1+ {[%emt 0:00:00]} 73. Kg2 {[%emt 0:02:44]} Bc3 {[%emt 0:00:00]} 74. Kf2 {[%emt 0:00:38]} Bb4 {[%emt 0:00:00]} 75. Bd1 {[%emt 0:00:18]} Bc3 {[%emt 0:00:09]} 76. Ke3 {[%emt 0:00:53]} Be1 {[%emt 0:00:59]} 77. Kf4 {[%emt 0:00:59]} Bd2+ {[%emt 0:00:43]} 78. Kg3 {[%emt 0:00:01]} Be1+ {[%emt 0:00:10]} 79. Kg2 {[%emt 0:00:01]} Bc3 {[%emt 0:00:26]} 80. Ba4 {[%emt 0:00:24]} Kf7 {[%emt 0:00:51] Against Be8+} 81. Bd7 {[%emt 0:00:12]} Bd2 {[%emt 0:00:24]} 82. Be6+ {[%emt 0:00:29]} Kf6 {[%emt 0:00:12]} 83. Kf2 {[%emt 0:00:49]} Bb4 {[%emt 0:00:30]} 84. Ke2 {[%emt 0:00:02]} Bc3 {[%emt 0:00:16]} 85. Kd3 {[%emt 0:00:04]} Be1 {[%emt 0:00:16]} 86. Kc2 {[%emt 0:00:04]} Bb4 {[%emt 0:00:37]} 87. Bd7 {[%emt 0:03:03]} Kf7 {[%emt 0:00:21]} 88. Kb3 {[%emt 0:00:10]} Be1 {[%emt 0:02:29]} 89. Ka4 {[%emt 0:00:12] [#]} (89. Kc2 $11) 89... Bd2 {[%emt 0:02:42]} ({Black should play} 89... Kf6 $1 $17 {Threatens to win with ...Bh4.} 90. Kb3 Bh4) 90. Kb5 {[%emt 0:00:15] The position is equal.} Kf6 {[%emt 0:01:26]} 91. Kc6 {[%emt 0:00:53]} Bg5 {[%emt 0:01:13] White must now prevent ...Ke5.} 92. Be6 $1 {[%emt 0:04:26] Strongly threatening Kd7.} Ke5 {[%emt 0:01:33] aiming for ...Kf4.} 93. Kd7 $1 {[%emt 0:00:03]} Kf4 $1 {[%emt 0:00:37] And now ...h4 would win.} 94. Bxe7 {[%emt 0:00:03]} Bxe7 {[%emt 0:00:33]} 95. Kxe7 {[%emt 0:00:01]} h4 $1 {[%emt 0:00:09]} 96. Kxd6 {[%emt 0:00:22] KB-K3P} h3 {[%emt 0:00:14] ( -> ...h2)} 97. Kc7 $1 {[%emt 0:00:03] White wants to mate with d6.} ({Don't blunder} 97. Kxc5 $2 h2 98. d6 h1=Q $19) 97... h2 {[%emt 0:00:42]} 98. d6 {[%emt 0:00:00] White threatens Bd5 and mate.} h1=Q {[%emt 0:01:28]} 99. d7 {[%emt 0:00:02]} Qh7 {[%emt 0:01:08] Hoping for ...g3.} 100. Kc8 {[%emt 0:03:56]} Qg6 {[%emt 0:02:19]} 101. Bd5 $1 {[%emt 0:00:50]} Qa6+ {[%emt 0:44:30] Blacks defense is rewarded with a draw.  Weighted Error Value: White=0.19 (very precise) /Black=0.16 (very precise)} 1/2-1/2